[Event "Summer Prague Open-A 2024"]
[Site "Prague"]
[Date "2024.08.02"]
[Round "1.11"]
[White "Walek, Petr"]
[Black "Kiraly, Lilla Virag"]
[Result "1-0"]
[Annotator "ChessBase"]
[ECO "B46"]
[WhiteElo "2283"]
[BlackElo "1908"]
[PlyCount "87"]
[EventDate "2024.08.02"]
[EventType "swiss"]
[EventCountry "CZE"]
[SourceTitle "playchess.com"]
[Source "ChessBase"]
[SourceQuality "1"]
[TimeControl "40/5400+30:1800+30"]

1. e4 {[%emt 0:00:02]} c5 {[%emt 0:00:10]} 2. Nf3 {[%emt 0:00:05]} e6 {[%emt 0:00:10]} 3. d4 {[%emt 0:00:08]} cxd4 {[%emt 0:00:09]} 4. Nxd4 {[%emt 0:00:04]} Nc6 {[%emt 0:00:12]} 5. Nc3 {[%emt 0:01:33]} a6 {[%emt 0:00:21]} 6. Nxc6 {[%emt 0:06:43]} bxc6 {[%emt 0:00:17]} 7. Qf3 {[%emt 0:00:08]} Nf6 {[%emt 0:14:09]} 8. Qg3 {[%emt 0:09:29]} d5 {[%emt 0:18:53]} 9. Bd3 {[%emt 0:04:45]} Bb4 {[%emt 0:21:20]} 10. e5 {[%emt 0:25:08]} d4 {[%emt 0:11:14]} 11. Qxg7 {[%emt 0:05:03]} Rg8 {[%emt 0:03:37]} 12. exf6 {[%emt 0:16:09]} Rxg7 {[%emt 0:19:38]} 13. fxg7 {[%emt 0:00:05]} Ke7 {[%emt 0:02:40]} 14. Bxh7 {[%emt 0:00:24]} dxc3 {[%emt 0:00:30]} 15. O-O {[%emt 0:01:26]} Bb7 {[%emt 0:03:20]} 16. g8=Q {[%emt 0:00:41]} Qxg8 {[%emt 0:00:39]} 17. Bxg8 {[%emt 0:00:06]} Rxg8 {[%emt 0:00:12]} 18. b3 {[%emt 0:04:41]} Bc5 {[%emt 0:01:15]} 19. Kh1 {[%emt 0:13:23]} Bd4 {[%emt 0:00:27]} 20. Bf4 {[%emt 0:01:08]} c5 {[%emt 0:00:29]} 21. f3 {[%emt 0:00:35]} Bc6 {[%emt 0:00:30]} 22. Rfe1 {[%emt 0:01:56]} Kf6 {[%emt 0:00:31]} 23. Bg3 {[%emt 0:03:01]} Kf5 {[%emt 0:00:37]} 24. a4 {[%emt 0:03:50]} Bd5 {[%emt 0:00:27]} 25. Re2 {[%emt 0:00:36]} f6 {[%emt 0:00:40]} 26. Rd1 {[%emt 0:01:00]} Rg7 {[%emt 0:00:21]} 27. Bf2 {[%emt 0:01:11]} e5 {[%emt 0:00:30]} 28. h4 {[%emt 0:00:37]} Rh7 {[%emt 0:00:34]} 29. Kg1 {[%emt 0:00:31]} Bc6 {[%emt 0:00:32]} 30. Kh2 {[%emt 0:00:29]} Bd5 {[%emt 0:00:33]} 31. Kh3 {[%emt 0:00:27]} Kg6 {[%emt 0:00:24]} 32. f4 {[%emt 0:00:34]} Be6+ {[%emt 0:00:24]} 33. g4 {[%emt 0:00:21]} Bd5 {[%emt 0:00:37]} 34. Kg3 {[%emt 0:00:36]} Re7 {[%emt 0:00:30]} 35. Bxd4 {[%emt 0:00:33]} exf4+ {[%emt 0:00:29]} 36. Kf2 {[%emt 0:00:14]} Rxe2+ {[%emt 0:00:32]} 37. Kxe2 {[%emt 0:00:02]} f3+ {[%emt 0:00:25]} 38. Ke3 {[%emt 0:00:14]} cxd4+ {[%emt 0:00:22]} 39. Rxd4 {[%emt 0:00:13]} Bb7 {[%emt 0:00:35]} 40. Rf4 {[%emt 0:00:31]} Kg7 {[%emt 0:00:40]} 41. Rb4 {[%emt 0:30:25]} Bd5 {[%emt 0:30:28]} 42. Rd4 {[%emt 0:00:10]} Ba8 {[%emt 0:00:27]} 43. Rd8 {[%emt 0:00:25]} Bc6 {[%emt 0:00:31]} 44. Rc8 {[%emt 0:00:21]} 1-0

[Event "Summer Prague Open-A 2024"]
[Site "Prague"]
[Date "2024.08.02"]
[Round "1.12"]
[White "Hemmerling, Jaroslaw"]
[Black "Camarena Jimenez, Rufino"]
[Result "0-1"]
[Annotator "ChessBase"]
[ECO "C06"]
[WhiteElo "1907"]
[BlackElo "2279"]
[PlyCount "86"]
[EventDate "2024.08.02"]
[EventType "swiss"]
[EventCountry "CZE"]
[SourceTitle "playchess.com"]
[Source "ChessBase"]
[SourceQuality "1"]
[TimeControl "40/5400+30:1800+30"]

1. e4 {[%emt 0:00:03]} e6 {[%emt 0:01:45]} 2. d4 {[%emt 0:00:06]} d5 {[%emt 0:00:05]} 3. Nd2 {[%emt 0:00:11]} Nf6 {[%emt 0:00:55]} 4. e5 {[%emt 0:00:44]} Nfd7 {[%emt 0:00:05]} 5. Bd3 {[%emt 0:00:14]} c5 {[%emt 0:00:14]} 6. c3 {[%emt 0:00:05]} Nc6 {[%emt 0:00:11]} 7. Ne2 {[%emt 0:00:57]} cxd4 {[%emt 0:00:20]} 8. cxd4 {[%emt 0:00:15]} f6 {[%emt 0:00:10]} 9. exf6 {[%emt 0:11:04]} Nxf6 {[%emt 0:02:48]} 10. O-O {[%emt 0:06:05]} Bd6 {[%emt 0:00:19]} 11. Nf3 {[%emt 0:00:02]} Qc7 {[%emt 0:00:13]} 12. Bg5 {[%emt 0:06:20]} O-O {[%emt 0:01:14]} 13. Rc1 {[%emt 0:15:42]} Bd7 {[%emt 0:03:33]} 14. Nc3 {[%emt 0:06:37]} a6 {[%emt 0:02:00]} 15. Bb1 {[%emt 0:05:17]} Be8 {[%emt 0:32:26]} 16. Qd3 {[%emt 0:15:18]} Bh5 {[%emt 0:02:46]} 17. Bxf6 {[%emt 0:00:06]} gxf6 {[%emt 0:00:20]} 18. h3 {[%emt 0:04:20]} Kh8 {[%emt 0:03:43]} 19. Ne2 {[%emt 0:07:23]} Rg8 {[%emt 0:03:55]} 20. Kh1 {[%emt 0:01:04]} Rg7 {[%emt 0:12:12]} 21. Rg1 {[%emt 0:00:24]} Bf4 {[%emt 0:13:33]} 22. Rce1 {[%emt 0:09:32]} Rag8 {[%emt 0:02:10]} 23. Nxf4 {[%emt 0:01:17]} Qxf4 {[%emt 0:00:17]} 24. Qe3 {[%emt 0:00:02]} Qxe3 {[%emt 0:08:32]} 25. fxe3 {[%emt 0:00:02]} Rxg2 {[%emt 0:01:21]} 26. Rxg2 {[%emt 0:01:19]} Bxf3 {[%emt 0:00:09]} 27. Reg1 {[%emt 0:00:13]} e5 {[%emt 0:03:01]} 28. dxe5 {[%emt 0:00:02]} fxe5 {[%emt 0:01:29]} 29. Kh2 {[%emt 0:00:02]} Rxg2+ {[%emt 0:00:15]} 30. Rxg2 {[%emt 0:00:02]} Bxg2 {[%emt 0:00:06]} 31. Kxg2 {[%emt 0:00:11]} Kg7 {[%emt 0:00:13]} 32. Kf3 {[%emt 0:01:33]} e4+ {[%emt 0:00:58]} 33. Kf4 {[%emt 0:00:18]} Kf6 {[%emt 0:00:07]} 34. a3 {[%emt 0:00:14]} Ne7 {[%emt 0:00:34]} 35. Ba2 {[%emt 0:01:30]} Ng6+ {[%emt 0:00:08]} 36. Kg4 {[%emt 0:01:09]} Ke5 {[%emt 0:00:07]} 37. Kg5 {[%emt 0:01:11]} Ne7 {[%emt 0:00:37]} 38. Kh6 {[%emt 0:01:42]} Nf5+ {[%emt 0:00:07]} 39. Kxh7 {[%emt 0:00:08]} Nxe3 {[%emt 0:00:06]} 40. h4 {[%emt 0:00:28]} Nf5 {[%emt 0:00:14]} 41. h5 {[%emt 0:30:09]} e3 {[%emt 0:30:10]} 42. Kg6 {[%emt 0:00:22]} e2 {[%emt 0:00:16]} 43. Bxd5 {[%emt 0:00:02]} e1=Q {[%emt 0:00:15]} 0-1

[Event "Summer Prague Open-A 2024"]
[Site "Prague"]
[Date "2024.08.02"]
[Round "1.13"]
[White "Neukirchner, Pascal"]
[Black "Vrzal, Filip"]
[Result "1-0"]
[Annotator "ChessBase"]
[ECO "A05"]
[WhiteElo "2261"]
[BlackElo "1907"]
[PlyCount "55"]
[EventDate "2024.08.02"]
[EventType "swiss"]
[EventCountry "CZE"]
[SourceTitle "playchess.com"]
[Source "ChessBase"]
[SourceQuality "1"]
[TimeControl "40/5400+30:1800+30"]

1. Nf3 {[%emt 0:00:04]} Nf6 {[%emt 0:00:08]} 2. g3 {[%emt 0:00:06]} c5 {[%emt 0:01:24]} 3. Bg2 {[%emt 0:00:06]} Nc6 {[%emt 0:00:17]} 4. O-O {[%emt 0:00:07]} g6 {[%emt 0:00:18]} 5. c4 {[%emt 0:00:10]} Bg7 {[%emt 0:00:11]} 6. d4 {[%emt 0:00:13]} cxd4 {[%emt 0:00:56]} 7. Nxd4 {[%emt 0:00:06]} O-O {[%emt 0:01:41]} 8. Nc3 {[%emt 0:00:05]} Nxd4 {[%emt 0:00:24]} 9. Qxd4 {[%emt 0:00:07]} d6 {[%emt 0:00:05]} 10. Qd3 {[%emt 0:00:19]} a6 {[%emt 0:03:10]} 11. Bg5 {[%emt 0:02:39]} Rb8 {[%emt 0:15:01]} 12. Rac1 {[%emt 0:08:55]} Bd7 {[%emt 0:06:42]} 13. b3 {[%emt 0:04:32]} Qa5 {[%emt 0:10:30]} 14. Bd2 {[%emt 0:08:10]} Rfc8 {[%emt 0:01:45]} 15. c5 {[%emt 0:08:10]} Qxc5 {[%emt 0:15:27]} 16. Nd5 {[%emt 0:02:22]} Qb5 {[%emt 0:10:36]} 17. Nxe7+ {[%emt 0:00:26]} Kf8 {[%emt 0:02:54]} 18. Qxb5 {[%emt 0:00:42]} axb5 {[%emt 0:00:08]} 19. Nxc8 {[%emt 0:00:05]} Bxc8 {[%emt 0:00:28]} 20. Bb4 {[%emt 0:01:27]} Ne8 {[%emt 0:01:43]} 21. Rfd1 {[%emt 0:02:25]} Ke7 {[%emt 0:00:57]} 22. e4 {[%emt 0:02:58]} Bd7 {[%emt 0:03:59]} 23. f4 {[%emt 0:00:15]} f6 {[%emt 0:00:13]} 24. Rc2 {[%emt 0:03:07]} Bc6 {[%emt 0:01:28]} 25. e5 {[%emt 0:03:19]} fxe5 {[%emt 0:02:38]} 26. Bxc6 {[%emt 0:00:05]} bxc6 {[%emt 0:00:07]} 27. Rxc6 {[%emt 0:00:04]} Rd8 {[%emt 0:00:16]} 28. Rb6 {[%emt 0:04:34]} 1-0

[Event "Summer Prague Open-A 2024"]
[Site "Prague"]
[Date "2024.08.02"]
[Round "1.14"]
[White "Jakubse, Tamae Severina"]
[Black "Veleshnja, Zino"]
[Result "0-1"]
[Annotator "ChessBase"]
[ECO "B22"]
[WhiteElo "1904"]
[BlackElo "2252"]
[PlyCount "80"]
[EventDate "2024.08.02"]
[EventType "swiss"]
[EventCountry "CZE"]
[SourceTitle "playchess.com"]
[Source "ChessBase"]
[SourceQuality "1"]
[TimeControl "40/5400+30:1800+30"]

1. e4 {[%emt 0:00:03]} c5 {[%emt 0:00:06]} 2. c3 {[%emt 0:00:03]} d5 {[%emt 0:00:16]} 3. exd5 {[%emt 0:00:03]} Qxd5 {[%emt 0:00:03]} 4. d4 {[%emt 0:00:06]} Nc6 {[%emt 0:00:12]} 5. Nf3 {[%emt 0:00:09]} Bg4 {[%emt 0:00:26]} 6. dxc5 {[%emt 0:00:55]} Qxd1+ {[%emt 0:06:31]} 7. Kxd1 {[%emt 0:00:06]} e5 {[%emt 0:05:11]} 8. b4 {[%emt 0:00:46]} e4 {[%emt 0:18:06]} 9. h3 {[%emt 0:00:28]} O-O-O+ {[%emt 0:08:45]} 10. Kc2 {[%emt 0:03:56]} Bf5 {[%emt 0:16:32]} 11. Nh4 {[%emt 0:22:58]} Be6 {[%emt 0:02:18]} 12. g4 {[%emt 0:00:33]} a5 {[%emt 0:04:17]} 13. a3 {[%emt 0:08:14]} Nf6 {[%emt 0:00:24]} 14. Bb5 {[%emt 0:12:42]} h5 {[%emt 0:03:31]} 15. g5 {[%emt 0:01:34]} Nd5 {[%emt 0:01:50]} 16. Bxc6 {[%emt 0:01:39]} bxc6 {[%emt 0:00:02]} 17. Ng2 {[%emt 0:01:24]} h4 {[%emt 0:03:38]} 18. Nd2 {[%emt 0:07:41]} Bf5 {[%emt 0:04:38]} 19. Kb2 {[%emt 0:02:01]} g6 {[%emt 0:01:38]} 20. Nc4 {[%emt 0:11:19]} Nxc3 {[%emt 0:04:47]} 21. Bf4 {[%emt 0:01:02]} Bg7 {[%emt 0:05:35]} 22. Be5 {[%emt 0:00:24]} Bxe5 {[%emt 0:01:16]} 23. Nxe5 {[%emt 0:00:06]} Nb5 {[%emt 0:02:24]} 24. a4 {[%emt 0:03:20]} Nc7 {[%emt 0:02:56]} 25. Nxf7 {[%emt 0:01:23]} Rd2+ {[%emt 0:01:02]} 26. Kc1 {[%emt 0:03:03]} Rxf2 {[%emt 0:00:06]} 27. Nxh8 {[%emt 0:03:22]} Rxg2 {[%emt 0:00:04]} 28. bxa5 {[%emt 0:06:15]} Na6 {[%emt 0:00:13]} 29. Kd1 {[%emt 0:01:15]} e3 {[%emt 0:01:11]} 30. Ra3 {[%emt 0:05:09]} Rd2+ {[%emt 0:02:00]} 31. Ke1 {[%emt 0:00:58]} Rb2 {[%emt 0:01:25]} 32. Rf1 {[%emt 0:00:41]} Nb4 {[%emt 0:01:22]} 33. Rxf5 {[%emt 0:02:06]} Nc2+ {[%emt 0:00:12]} 34. Kf1 {[%emt 0:00:33]} e2+ {[%emt 0:00:40]} 35. Kxe2 {[%emt 0:00:17]} Nxa3+ {[%emt 0:00:05]} 36. Kf3 {[%emt 0:00:54]} gxf5 {[%emt 0:00:10]} 37. g6 {[%emt 0:00:14]} Kd7 {[%emt 0:00:56]} 38. g7 {[%emt 0:00:44]} Rb3+ {[%emt 0:00:47]} 39. Kf4 {[%emt 0:00:24]} Rg3 {[%emt 0:00:11]} 40. a6 {[%emt 0:00:54]} Rxg7 {[%emt 0:00:16]} 0-1

[Event "Summer Prague Open-A 2024"]
[Site "Prague"]
[Date "2024.08.02"]
[Round "1.15"]
[White "Petr, Jakub"]
[Black "Napieralski, Lucjan"]
[Result "1-0"]
[Annotator "ChessBase"]
[ECO "C08"]
[WhiteElo "2243"]
[BlackElo "1904"]
[PlyCount "109"]
[EventDate "2024.08.02"]
[EventType "swiss"]
[EventCountry "CZE"]
[SourceTitle "playchess.com"]
[Source "ChessBase"]
[SourceQuality "1"]
[TimeControl "40/5400+30:1800+30"]

1. e4 {[%emt 0:00:09]} e6 {[%emt 0:00:06]} 2. d4 {[%emt 0:00:05]} d5 {[%emt 0:00:07]} 3. Nd2 {[%emt 0:00:05]} c5 {[%emt 0:00:33]} 4. exd5 {[%emt 0:00:16]} exd5 {[%emt 0:00:54]} 5. Ngf3 {[%emt 0:00:23]} Nf6 {[%emt 0:01:01]} 6. Bb5+ {[%emt 0:01:33]} Bd7 {[%emt 0:05:50]} 7. Qe2+ {[%emt 0:02:56]} Qe7 {[%emt 0:11:07]} 8. Ne5 {[%emt 0:01:12]} a6 {[%emt 0:07:09]} 9. Bxd7+ {[%emt 0:04:06]} Nfxd7 {[%emt 0:13:39]} 10. Nxd7 {[%emt 0:02:17]} Nxd7 {[%emt 0:04:33]} 11. dxc5 {[%emt 0:00:37]} Nxc5 {[%emt 0:05:20]} 12. Nf3 {[%emt 0:05:07]} Qxe2+ {[%emt 0:08:12]} 13. Kxe2 {[%emt 0:00:16]} Be7 {[%emt 0:00:48]} 14. Rd1 {[%emt 0:08:53]} Rd8 {[%emt 0:00:07]} 15. Be3 {[%emt 0:01:27]} O-O {[%emt 0:05:07]} 16. Nd4 {[%emt 0:08:06]} Rfe8 {[%emt 0:07:24]} 17. Kf1 {[%emt 0:03:07]} Bf6 {[%emt 0:09:06]} 18. c3 {[%emt 0:04:41]} g6 {[%emt 0:04:54]} 19. Rac1 {[%emt 0:12:09]} Ne6 {[%emt 0:02:15]} 20. Rc2 {[%emt 0:03:30]} Rd7 {[%emt 0:07:35]} 21. Rcd2 {[%emt 0:01:43]} b5 {[%emt 0:00:23]} 22. Nc2 {[%emt 0:02:49]} Red8 {[%emt 0:01:45]} 23. Nb4 {[%emt 0:00:43]} d4 {[%emt 0:01:32]} 24. Nc6 {[%emt 0:01:08]} Rc8 {[%emt 0:01:14]} 25. Nxd4 {[%emt 0:00:10]} Nxd4 {[%emt 0:00:30]} 26. Bxd4 {[%emt 0:00:09]} Bxd4 {[%emt 0:00:50]} 27. Rxd4 {[%emt 0:00:39]} Rxd4 {[%emt 0:00:12]} 28. Rxd4 {[%emt 0:00:04]} Rc6 {[%emt 0:00:16]} 29. Ke2 {[%emt 0:00:22]} Kg7 {[%emt 0:00:12]} 30. Kd3 {[%emt 0:00:36]} Kf6 {[%emt 0:00:38]} 31. a4 {[%emt 0:02:56]} bxa4 {[%emt 0:01:12]} 32. Rxa4 {[%emt 0:00:11]} Ke5 {[%emt 0:00:34]} 33. Ra5+ {[%emt 0:01:22]} Kd6 {[%emt 0:00:59]} 34. c4 {[%emt 0:00:11]} Kc7 {[%emt 0:00:42]} 35. b4 {[%emt 0:00:56]} Rf6 {[%emt 0:00:29]} 36. f3 {[%emt 0:00:10]} Kb6 {[%emt 0:00:05]} 37. c5+ {[%emt 0:01:00]} Kb7 {[%emt 0:00:18]} 38. Ra2 {[%emt 0:00:19]} Rf4 {[%emt 0:00:38]} 39. Kc3 {[%emt 0:00:05]} Rh4 {[%emt 0:00:45]} 40. h3 {[%emt 0:00:19]} Rf4 {[%emt 0:00:23]} 41. Rd2 {[%emt 0:31:05]} h5 {[%emt 0:30:56]} 42. Rd7+ {[%emt 0:02:07]} Kb8 {[%emt 0:00:00]} 43. Rd4 {[%emt 0:00:00]} Rf5 {[%emt 0:00:00]} 44. Kc4 {[%emt 0:00:00]} Kb7 {[%emt 0:00:00]} 45. Rd7+ {[%emt 0:00:00]} Kc6 {[%emt 0:00:00]} 46. Ra7 {[%emt 0:00:00]} Rf4+ {[%emt 0:00:00]} 47. Kb3 {[%emt 0:00:00]} g5 {[%emt 0:00:00]} 48. Rxa6+ {[%emt 0:00:00]} Kb7 {[%emt 0:00:00]} 49. Rh6 {[%emt 0:00:00]} g4 {[%emt 0:00:00]} 50. hxg4 {[%emt 0:00:00]} hxg4 {[%emt 0:00:00]} 51. fxg4 {[%emt 0:00:00]} Rxg4 {[%emt 0:00:00]} 52. Rf6 {[%emt 0:00:00]} Rxg2 {[%emt 0:00:00]} 53. Rxf7+ {[%emt 0:00:00]} Ka6 {[%emt 0:00:00]} 54. Rf6+ {[%emt 0:00:00]} Kb5 {[%emt 0:00:00]} 55. Rb6# 1-0

[Event "Summer Prague Open-A 2024"]
[Site "Prague"]
[Date "2024.08.02"]
[Round "1.16"]
[White "Mikhno, Artem"]
[Black "Sramek, Vojtech"]
[Result "0-1"]
[Annotator "ChessBase"]
[ECO "D43"]
[WhiteElo "1900"]
[BlackElo "2237"]
[PlyCount "80"]
[EventDate "2024.08.02"]
[EventType "swiss"]
[EventCountry "CZE"]
[SourceTitle "playchess.com"]
[Source "ChessBase"]
[SourceQuality "1"]
[TimeControl "40/5400+30:1800+30"]

1. d4 {[%emt 0:00:04]} d5 {[%emt 0:00:09]} 2. c4 {[%emt 0:00:09]} c6 {[%emt 0:00:36]} 3. Nc3 {[%emt 0:00:15]} Nf6 {[%emt 0:00:05]} 4. Nf3 {[%emt 0:01:28]} e6 {[%emt 0:00:07]} 5. Bf4 {[%emt 0:03:00]} dxc4 {[%emt 0:00:56]} 6. e3 {[%emt 0:02:13]} b5 {[%emt 0:01:22]} 7. a4 {[%emt 0:00:17]} Bb4 {[%emt 0:04:54]} 8. axb5 {[%emt 0:18:42]} cxb5 {[%emt 0:01:16]} 9. Bxb8 {[%emt 0:04:57]} Rxb8 {[%emt 0:00:11]} 10. Rxa7 {[%emt 0:00:08]} O-O {[%emt 0:16:25]} 11. Be2 {[%emt 0:00:39]} Qb6 {[%emt 0:08:52]} 12. Ra2 {[%emt 0:06:15]} Bb7 {[%emt 0:00:37]} 13. O-O {[%emt 0:00:16]} Ra8 {[%emt 0:04:20]} 14. Qb1 {[%emt 0:00:40]} Bxc3 {[%emt 0:11:12]} 15. bxc3 {[%emt 0:02:12]} Nd5 {[%emt 0:03:01]} 16. Rc1 {[%emt 0:04:36]} Rxa2 {[%emt 0:01:34]} 17. Qxa2 {[%emt 0:00:03]} Ra8 {[%emt 0:00:13]} 18. Qb2 {[%emt 0:00:30]} Qa6 {[%emt 0:04:47]} 19. Nd2 {[%emt 0:25:21]} Qa3 {[%emt 0:09:57]} 20. Qc2 {[%emt 0:00:34]} Qa2 {[%emt 0:01:54]} 21. Qd1 {[%emt 0:02:03]} h6 {[%emt 0:07:11]} 22. Bf3 {[%emt 0:01:40]} Qb2 {[%emt 0:02:35]} 23. Rc2 {[%emt 0:01:01]} Qa1 {[%emt 0:05:11]} 24. Rc1 {[%emt 0:04:42]} Qb2 {[%emt 0:00:05]} 25. Rc2 {[%emt 0:00:13]} Qa1 {[%emt 0:00:12]} 26. Rc1 {[%emt 0:00:25]} Qa4 {[%emt 0:00:23]} 27. Kf1 {[%emt 0:07:35]} Qxd1+ {[%emt 0:00:27]} 28. Rxd1 {[%emt 0:00:32]} Ra3 {[%emt 0:04:16]} 29. Rc1 {[%emt 0:00:52]} Kf8 {[%emt 0:01:08]} 30. Ke1 {[%emt 0:01:02]} Ke7 {[%emt 0:00:50]} 31. Kd1 {[%emt 0:01:33]} Nxc3+ {[%emt 0:00:50]} 32. Rxc3 {[%emt 0:00:06]} Bxf3+ {[%emt 0:00:39]} 33. Kc2 {[%emt 0:00:05]} Ra2+ {[%emt 0:03:56]} 34. Kc1 {[%emt 0:00:06]} Bxg2 {[%emt 0:00:12]} 35. e4 {[%emt 0:00:09]} f5 {[%emt 0:01:24]} 36. exf5 {[%emt 0:02:55]} Bd5 {[%emt 0:01:57]} 37. fxe6 {[%emt 0:00:11]} b4 {[%emt 0:01:05]} 38. Rg3 {[%emt 0:03:50]} g5 {[%emt 0:00:05]} 39. Rh3 {[%emt 0:00:37]} c3 {[%emt 0:00:30]} 40. Nb1 {[%emt 0:00:07]} Rxf2 {[%emt 0:03:10]} 0-1

[Event "Summer Prague Open-A 2024"]
[Site "Prague"]
[Date "2024.08.02"]
[Round "1.17"]
[White "Skypala, Ondrej"]
[Black "Gharibyan, Mane"]
[Result "1-0"]
[Annotator "ChessBase"]
[ECO "A14"]
[WhiteElo "2230"]
[BlackElo "1896"]
[PlyCount "41"]
[EventDate "2024.08.02"]
[EventType "swiss"]
[EventCountry "CZE"]
[SourceTitle "playchess.com"]
[Source "ChessBase"]
[SourceQuality "1"]
[TimeControl "40/5400+30:1800+30"]

1. c4 {[%emt 0:00:03]} Nf6 {[%emt 0:00:25]} 2. g3 {[%emt 0:00:06]} e6 {[%emt 0:05:45]} 3. Bg2 {[%emt 0:00:07]} d5 {[%emt 0:01:47]} 4. Nf3 {[%emt 0:00:08]} Be7 {[%emt 0:04:23]} 5. O-O {[%emt 0:00:11]} O-O {[%emt 0:00:03]} 6. b3 {[%emt 0:00:09]} b6 {[%emt 0:07:21]} 7. d4 {[%emt 0:00:08]} Bb7 {[%emt 0:01:23]} 8. Ne5 {[%emt 0:01:13]} Nbd7 {[%emt 0:17:00]} 9. Bb2 {[%emt 0:04:34]} Qc8 {[%emt 0:13:01]} 10. Nd2 {[%emt 0:01:23]} Rd8 {[%emt 0:12:47]} 11. Rc1 {[%emt 0:04:45]} c5 {[%emt 0:10:59]} 12. dxc5 {[%emt 0:06:45]} bxc5 {[%emt 0:03:31]} 13. cxd5 {[%emt 0:00:55]} exd5 {[%emt 0:02:36]} 14. Ndf3 {[%emt 0:01:27]} Ne4 {[%emt 0:06:14]} 15. Bh3 {[%emt 0:00:43]} Bc6 {[%emt 0:06:40]} 16. Nd4 {[%emt 0:01:21]} cxd4 {[%emt 0:03:49]} 17. Nxc6 {[%emt 0:00:19]} Bc5 {[%emt 0:00:40]} 18. Rxc5 {[%emt 0:00:35]} Qa6 {[%emt 0:00:31]} 19. Nxd8 {[%emt 0:01:15]} Ndxc5 {[%emt 0:00:29]} 20. Qxd4 {[%emt 0:00:22]} Qg6 {[%emt 0:00:33]} 21. Qxd5 {[%emt 0:00:29]} 1-0

[Event "Summer Prague Open-A 2024"]
[Site "Prague"]
[Date "2024.08.02"]
[Round "1.18"]
[White "Omarsson, Josef"]
[Black "Kuhn, Tobias"]
[Result "0-1"]
[Annotator "ChessBase"]
[ECO "D43"]
[WhiteElo "1895"]
[BlackElo "2223"]
[PlyCount "48"]
[EventDate "2024.08.02"]
[EventType "swiss"]
[EventCountry "CZE"]
[SourceTitle "playchess.com"]
[Source "ChessBase"]
[SourceQuality "1"]
[TimeControl "40/5400+30:1800+30"]

1. d4 {[%emt 0:00:12]} d5 {[%emt 0:00:09]} 2. c4 {[%emt 0:00:24]} c6 {[%emt 0:00:08]} 3. Nc3 {[%emt 0:00:34]} Nf6 {[%emt 0:00:07]} 4. Nf3 {[%emt 0:00:34]} e6 {[%emt 0:00:10]} 5. Bg5 {[%emt 0:00:42]} h6 {[%emt 0:00:32]} 6. Bh4 {[%emt 0:01:21]} dxc4 {[%emt 0:00:50]} 7. e4 {[%emt 0:00:34]} g5 {[%emt 0:00:42]} 8. Bg3 {[%emt 0:00:28]} b5 {[%emt 0:00:15]} 9. a3 {[%emt 0:03:49]} Bb7 {[%emt 0:07:44]} 10. Be2 {[%emt 0:15:07]} Nbd7 {[%emt 0:03:36]} 11. e5 {[%emt 0:07:32]} Nd5 {[%emt 0:02:31]} 12. Nd2 {[%emt 0:01:39]} Qb6 {[%emt 0:07:29]} 13. Nde4 {[%emt 0:02:24]} c5 {[%emt 0:04:46]} 14. a4 {[%emt 0:02:21]} Nxc3 {[%emt 0:09:45]} 15. Nxc3 {[%emt 0:00:37]} cxd4 {[%emt 0:00:19]} 16. Nxb5 {[%emt 0:00:32]} Bxg2 {[%emt 0:00:33]} 17. Kd2 {[%emt 0:24:27]} Bxh1 {[%emt 0:13:17]} 18. Qxh1 {[%emt 0:00:11]} Rc8 {[%emt 0:00:10]} 19. Rd1 {[%emt 0:01:48]} a6 {[%emt 0:01:14]} 20. Nd6+ {[%emt 0:00:41]} Bxd6 {[%emt 0:00:07]} 21. exd6 {[%emt 0:00:07]} Qb4+ {[%emt 0:01:39]} 22. Kc1 {[%emt 0:01:08]} c3 {[%emt 0:00:22]} 23. Kc2 {[%emt 0:05:13]} Qxb2+ {[%emt 0:01:59]} 24. Kd3 {[%emt 0:00:08]} c2 {[%emt 0:01:25]} 0-1

[Event "Summer Prague Open-A 2024"]
[Site "Prague"]
[Date "2024.08.02"]
[Round "1.19"]
[White "Schmitz, Thorsten"]
[Black "Pesola, Jyrki"]
[Result "1-0"]
[Annotator "ChessBase"]
[ECO "B22"]
[WhiteElo "2218"]
[BlackElo "1893"]
[PlyCount "81"]
[EventDate "2024.08.02"]
[EventType "swiss"]
[EventCountry "CZE"]
[SourceTitle "playchess.com"]
[Source "ChessBase"]
[SourceQuality "1"]
[TimeControl "40/5400+30:1800+30"]

1. e4 {[%emt 0:00:04]} c5 {[%emt 0:00:09]} 2. c3 {[%emt 0:00:05]} Nf6 {[%emt 0:00:13]} 3. e5 {[%emt 0:00:05]} Nd5 {[%emt 0:00:15]} 4. d4 {[%emt 0:00:14]} cxd4 {[%emt 0:00:38]} 5. Nf3 {[%emt 0:00:09]} Nc6 {[%emt 0:01:34]} 6. cxd4 {[%emt 0:00:06]} d6 {[%emt 0:01:37]} 7. Bc4 {[%emt 0:00:06]} e6 {[%emt 0:04:00]} 8. O-O {[%emt 0:06:37]} dxe5 {[%emt 0:02:35]} 9. dxe5 {[%emt 0:00:51]} Be7 {[%emt 0:00:36]} 10. Qe2 {[%emt 0:03:26]} Nb6 {[%emt 0:04:25]} 11. Bb3 {[%emt 0:02:18]} O-O {[%emt 0:04:09]} 12. Nc3 {[%emt 0:02:22]} Nd4 {[%emt 0:08:30]} 13. Nxd4 {[%emt 0:01:42]} Qxd4 {[%emt 0:02:11]} 14. Rd1 {[%emt 0:01:28]} Qh4 {[%emt 0:04:34]} 15. Be3 {[%emt 0:02:32]} Rd8 {[%emt 0:03:03]} 16. Rxd8+ {[%emt 0:08:05]} Bxd8 {[%emt 0:00:04]} 17. Rd1 {[%emt 0:00:30]} Qe7 {[%emt 0:06:43]} 18. Bc5 {[%emt 0:11:11]} Qe8 {[%emt 0:15:23]} 19. Bc2 {[%emt 0:12:43]} g6 {[%emt 0:07:01]} 20. Ne4 {[%emt 0:19:57]} Kg7 {[%emt 0:03:19]} 21. Qf3 {[%emt 0:08:10]} Be7 {[%emt 0:02:57]} 22. Nf6 {[%emt 0:02:17]} Qf8 {[%emt 0:00:44]} 23. Qh3 {[%emt 0:00:38]} h6 {[%emt 0:03:58]} 24. Be3 {[%emt 0:09:44]} Qh8 {[%emt 0:02:44]} 25. Rd4 {[%emt 0:01:04]} Nd5 {[%emt 0:06:23]} 26. Rh4 {[%emt 0:00:50]} Nxe3 {[%emt 0:04:11]} 27. Qxe3 {[%emt 0:00:16]} Bxf6 {[%emt 0:04:29]} 28. exf6+ {[%emt 0:00:04]} Kxf6 {[%emt 0:00:50]} 29. Qc3+ {[%emt 0:00:35]} e5 {[%emt 0:00:08]} 30. Rf4+ {[%emt 0:00:50]} Bf5 {[%emt 0:00:21]} 31. Bxf5 {[%emt 0:00:27]} gxf5 {[%emt 0:00:15]} 32. g4 {[%emt 0:00:12]} Ke6 {[%emt 0:05:09]} 33. Qb3+ {[%emt 0:00:33]} Kd6 {[%emt 0:00:31]} 34. Rxf5 {[%emt 0:00:18]} f6 {[%emt 0:00:36]} 35. Qxb7 {[%emt 0:00:29]} Rb8 {[%emt 0:00:36]} 36. Qxa7 {[%emt 0:00:27]} Qd8 {[%emt 0:01:13]} 37. Rxf6+ {[%emt 0:00:48]} Kd5 {[%emt 0:00:32]} 38. Qf7+ {[%emt 0:01:02]} Kd4 {[%emt 0:00:26]} 39. Qg6 {[%emt 0:00:37]} Qa5 {[%emt 0:00:41]} 40. Rd6+ {[%emt 0:00:41]} Kc4 {[%emt 0:00:32]} 41. Qe4+ {[%emt 0:30:09]} 1-0